[Event "*** Titled Tuesday Blitz"]
[Site "Chess.com"]
[Date "2018.07.03"]
[Round "3"]
[White "pultineviciuspaulius"]
[Black "GM_dmitrij"]
[Result "0-1"]
[WhiteElo "2611"]
[BlackElo "2815"]
[TimeControl "180+2"]
[EndTime "13:36:24 PDT"]
[Termination "GM_dmitrij won by resignation"]

1. Nf3 {[%clk 0:03:01.9]} 1... d5 {[%clk 0:02:59.6]} 2. g3 {[%clk 0:03:03.3]}
2... Bg4 {[%clk 0:03:00.2]} 3. Bg2 {[%clk 0:03:04.3]} 3... Nd7 {[%clk
0:03:01.6]} 4. O-O {[%clk 0:03:04.5]} 4... Ngf6 {[%clk 0:03:02.7]} 5. d3 {[%clk
0:03:02.9]} 5... e5 {[%clk 0:03:03.1]} 6. b3 {[%clk 0:03:00]} 6... Bd6 {[%clk
0:03:03.3]} 7. Bb2 {[%clk 0:03:01.1]} 7... O-O {[%clk 0:03:03.8]} 8. Nbd2 {[%clk
0:03:02.1]} 8... Re8 {[%clk 0:03:04.1]} 9. e4 {[%clk 0:03:02.7]} 9... a5 {[%clk
0:03:00.9]} 10. exd5 {[%clk 0:02:58.7]} 10... Nxd5 {[%clk 0:02:59.4]} 11. Nc4
{[%clk 0:02:57.6]} 11... a4 {[%clk 0:02:54.2]} 12. Nxd6 {[%clk 0:02:51.8]} 12...
cxd6 {[%clk 0:02:54.2]} 13. Qd2 {[%clk 0:02:41.6]} 13... a3 {[%clk 0:02:50.9]}
14. Bc1 {[%clk 0:02:41.2]} 14... Nc5 {[%clk 0:02:43.9]} 15. Ng5 {[%clk
0:02:08.5]} 15... Nf6 {[%clk 0:02:29.1]} 16. h3 {[%clk 0:02:00.4]} 16... Bf5
{[%clk 0:02:24.9]} 17. b4 {[%clk 0:01:56.8]} 17... Ne6 {[%clk 0:02:13.7]} 18.
Bxb7 {[%clk 0:01:57.9]} 18... Nxg5 {[%clk 0:02:04.6]} 19. Qxg5 {[%clk
0:01:59.8]} 19... Bxh3 {[%clk 0:02:01.8]} 20. Bg2 {[%clk 0:01:55.2]} 20... Bxg2
{[%clk 0:02:02.2]} 21. Kxg2 {[%clk 0:01:57.1]} 21... Qc7 {[%clk 0:01:35.6]} 22.
Qd2 {[%clk 0:01:27.2]} 22... d5 {[%clk 0:01:36.6]} 23. Rb1 {[%clk 0:01:20.1]}
23... Rec8 {[%clk 0:01:28.5]} 24. Rb3 {[%clk 0:01:00.3]} 24... Qxc2 {[%clk
0:01:29]} 25. Qxc2 {[%clk 0:00:54]} 25... Rxc2 {[%clk 0:01:30.9]} 26. Rxa3
{[%clk 0:00:55.4]} 26... Rxa3 {[%clk 0:01:24.4]} 27. Bxa3 {[%clk 0:00:57.3]}
27... Rxa2 {[%clk 0:01:25.6]} 28. Bc1 {[%clk 0:00:49.9]} 28... d4 {[%clk
0:01:20.1]} 29. Kf3 {[%clk 0:00:45]} 29... Nd5 {[%clk 0:01:12.1]} 30. Ke4 {[%clk
0:00:40.1]} 30... Nxb4 {[%clk 0:01:13.2]} 31. Kxe5 {[%clk 0:00:41.1]} 31...
Nxd3+ {[%clk 0:01:07.5]} 32. Kxd4 {[%clk 0:00:41.6]} 32... Rxf2 {[%clk
0:00:58.1]} 33. Rd1 {[%clk 0:00:19.5]} 33... Nxc1 {[%clk 0:00:56.8]} 34. Ke3
{[%clk 0:00:21.4]} 34... Re2+ {[%clk 0:00:48.5]} 35. Kf3 {[%clk 0:00:22.7]}
35... Re8 {[%clk 0:00:47.3]} 36. Rxc1 {[%clk 0:00:24.1]} 36... h5 {[%clk
0:00:47.7]} 37. Rc5 {[%clk 0:00:24.4]} 37... g6 {[%clk 0:00:48.2]} 38. Kf4
{[%clk 0:00:25.8]} 38... Kg7 {[%clk 0:00:49.6]} 39. Rc6 {[%clk 0:00:26.1]} 39...
Ra8 {[%clk 0:00:49.9]} 40. Kf3 {[%clk 0:00:27.2]} 40... Ra3+ {[%clk 0:00:50.8]}
41. Kg2 {[%clk 0:00:27.3]} 41... Kh6 {[%clk 0:00:51.7]} 42. Rb6 {[%clk
0:00:28.6]} 42... Kg5 {[%clk 0:00:52.1]} 43. Rb7 {[%clk 0:00:29.9]} 43... f6
{[%clk 0:00:49.4]} 44. Rb5+ {[%clk 0:00:30.2]} 44... f5 {[%clk 0:00:50.7]} 45.
Rb4 {[%clk 0:00:32.1]} 45... Re3 {[%clk 0:00:51.1]} 46. Rb6 {[%clk 0:00:33]}
46... Re4 {[%clk 0:00:51.3]} 47. Ra6 {[%clk 0:00:34.1]} 47... h4 {[%clk
0:00:51.4]} 48. gxh4+ {[%clk 0:00:35]} 48... Rxh4 {[%clk 0:00:53.3]} 49. Kg3
{[%clk 0:00:36.5]} 49... Rb4 {[%clk 0:00:53.7]} 50. Kf3 {[%clk 0:00:38.4]} 50...
Rb3+ {[%clk 0:00:54.3]} 51. Kf2 {[%clk 0:00:39.2]} 51... Kh5 {[%clk 0:00:55.9]}
52. Rc6 {[%clk 0:00:39.1]} 52... g5 {[%clk 0:00:56.8]} 53. Rc4 {[%clk
0:00:40.6]} 53... f4 {[%clk 0:00:57.9]} 54. Rc6 {[%clk 0:00:41]} 54... Kg4
{[%clk 0:00:59.1]} 55. Rc3 {[%clk 0:00:42.9]} 55... Rxc3 {[%clk 0:00:59.7]} 0-1

[Event "*** Titled Tuesday Blitz"]
[Site "Chess.com"]
[Date "2018.07.03"]
[Round "3"]
[White "chesstatour"]
[Black "DiamondCrusher22"]
[Result "0-1"]
[WhiteElo "2035"]
[BlackElo "1967"]
[TimeControl "180+2"]
[EndTime "13:36:31 PDT"]
[Termination "DiamondCrusher22 won on time"]

1. c4 {[%clk 0:03:01.9]} 1... c6 {[%clk 0:03:00.6]} 2. e4 {[%clk 0:03:00.5]}
2... e5 {[%clk 0:02:59.5]} 3. Nc3 {[%clk 0:02:59.5]} 3... Nf6 {[%clk 0:03:00.5]}
4. Nf3 {[%clk 0:02:56.1]} 4... d6 {[%clk 0:02:59.3]} 5. d4 {[%clk 0:02:56.4]}
5... Nbd7 {[%clk 0:02:57.9]} 6. Be2 {[%clk 0:02:54.5]} 6... Be7 {[%clk
0:02:56.6]} 7. O-O {[%clk 0:02:54.5]} 7... O-O {[%clk 0:02:56.6]} 8. h3 {[%clk
0:02:53.5]} 8... Qc7 {[%clk 0:02:53.4]} 9. Be3 {[%clk 0:02:41.5]} 9... a6 {[%clk
0:02:51.6]} 10. Rc1 {[%clk 0:02:26.3]} 10... Re8 {[%clk 0:02:42]} 11. b4 {[%clk
0:02:03.1]} 11... Nf8 {[%clk 0:02:36.4]} 12. b5 {[%clk 0:02:02.6]} 12... Ng6
{[%clk 0:02:35.6]} 13. Qd2 {[%clk 0:01:49.9]} 13... axb5 {[%clk 0:02:28.5]} 14.
cxb5 {[%clk 0:01:45.5]} 14... Qa5 {[%clk 0:02:28.6]} 15. bxc6 {[%clk 0:01:27.9]}
15... bxc6 {[%clk 0:02:29]} 16. d5 {[%clk 0:01:01]} 16... cxd5 {[%clk
0:02:26.6]} 17. exd5 {[%clk 0:00:40.9]} 17... Bb7 {[%clk 0:02:16.1]} 18. Rfd1
{[%clk 0:00:36.7]} 18... Rec8 {[%clk 0:02:05.2]} 19. Bg5 {[%clk 0:00:18]} 19...
Rc5 {[%clk 0:00:37.9]} 20. Bxf6 {[%clk 0:00:17.6]} 20... Bxf6 {[%clk 0:00:38.8]}
21. Ne4 {[%clk 0:00:14.4]} 21... Qxd2 {[%clk 0:00:38.4]} 22. Nxf6+ {[%clk
0:00:12.4]} 22... gxf6 {[%clk 0:00:38.7]} 23. Nxd2 {[%clk 0:00:12.8]} 23... Bxd5
{[%clk 0:00:34.2]} 24. Rxc5 {[%clk 0:00:12.4]} 24... dxc5 {[%clk 0:00:35.3]} 25.
Nc4 {[%clk 0:00:11.4]} 25... Nf4 {[%clk 0:00:31.2]} 26. Bf1 {[%clk 0:00:09.9]}
26... Be6 {[%clk 0:00:16]} 27. Rd2 {[%clk 0:00:07.5]} 27... Ra4 {[%clk
0:00:13.2]} 28. Rc2 {[%clk 0:00:07.5]} 28... Bf5 {[%clk 0:00:12.8]} 29. Rd2
{[%clk 0:00:07.5]} 29... Be6 {[%clk 0:00:13]} 30. Rc2 {[%clk 0:00:08.4]} 30...
Nd5 {[%clk 0:00:13.1]} 31. g3 {[%clk 0:00:07.2]} 31... Nb4 {[%clk 0:00:14.1]}
32. Rd2 {[%clk 0:00:08.1]} 32... Rxa2 {[%clk 0:00:14.3]} 33. Rd8+ {[%clk
0:00:07.6]} 33... Kg7 {[%clk 0:00:15.5]} 34. Nd6 {[%clk 0:00:08.4]} 34... Nc6
{[%clk 0:00:13.6]} 35. Ne8+ {[%clk 0:00:05.6]} 35... Kf8 {[%clk 0:00:11.3]} 36.
Rd6 {[%clk 0:00:06.3]} 36... Nd4 {[%clk 0:00:08.2]} 37. Nc7 {[%clk 0:00:06.9]}
37... Ke7 {[%clk 0:00:07.9]} 0-1

[Event "*** Titled Tuesday Blitz"]
[Site "Chess.com"]
[Date "2018.07.03"]
[Round "3"]
[White "albi1999"]
[Black "penguingm1"]
[Result "0-1"]
[WhiteElo "2508"]
[BlackElo "2762"]
[TimeControl "180+2"]
[EndTime "13:36:32 PDT"]
[Termination "penguingm1 won by checkmate"]

1. d4 {[%clk 0:03:01]} 1... d5 {[%clk 0:02:38.4]} 2. c4 {[%clk 0:03:01.6]} 2...
e6 {[%clk 0:02:37.4]} 3. Nf3 {[%clk 0:03:02.6]} 3... Nf6 {[%clk 0:02:38.4]} 4.
g3 {[%clk 0:03:01.1]} 4... Be7 {[%clk 0:02:39.7]} 5. Bg2 {[%clk 0:03:01.5]} 5...
O-O {[%clk 0:02:41.3]} 6. O-O {[%clk 0:03:02]} 6... dxc4 {[%clk 0:02:42.8]} 7.
Ne5 {[%clk 0:02:51.4]} 7... Nc6 {[%clk 0:02:43.7]} 8. Bxc6 {[%clk 0:02:51.5]}
8... bxc6 {[%clk 0:02:45.6]} 9. Nxc6 {[%clk 0:02:53.3]} 9... Qe8 {[%clk
0:02:47]} 10. Nxe7+ {[%clk 0:02:55.2]} 10... Qxe7 {[%clk 0:02:48.9]} 11. Qc2
{[%clk 0:02:44]} 11... c5 {[%clk 0:02:38.8]} 12. Qxc4 {[%clk 0:02:44.1]} 12...
cxd4 {[%clk 0:02:39.1]} 13. Qxd4 {[%clk 0:02:46]} 13... e5 {[%clk 0:02:38.4]}
14. Qh4 {[%clk 0:02:46.5]} 14... h6 {[%clk 0:02:38.4]} 15. Nc3 {[%clk 0:02:38]}
15... Bb7 {[%clk 0:02:39.6]} 16. e4 {[%clk 0:02:37]} 16... Rfe8 {[%clk
0:02:37.4]} 17. Re1 {[%clk 0:02:19.7]} 17... Rac8 {[%clk 0:02:35.5]} 18. Be3
{[%clk 0:02:16.9]} 18... Qb4 {[%clk 0:02:32.5]} 19. Bxh6 {[%clk 0:01:47.9]}
19... Re6 {[%clk 0:02:10.5]} 20. Bc1 {[%clk 0:01:35.4]} 20... Rd6 {[%clk
0:02:03.4]} 21. a3 {[%clk 0:01:33.3]} 21... Qb3 {[%clk 0:01:57.8]} 22. Qg5
{[%clk 0:01:30.5]} 22... Rxc3 {[%clk 0:01:42.7]} 23. bxc3 {[%clk 0:01:28]} 23...
Qxc3 {[%clk 0:01:44.2]} 24. Be3 {[%clk 0:01:18.3]} 24... Nxe4 {[%clk 0:01:41.9]}
25. Qe7 {[%clk 0:01:15.1]} 25... Qc6 {[%clk 0:01:39.1]} 26. Rab1 {[%clk
0:01:00]} 26... Rd7 {[%clk 0:01:11]} 27. Qe8+ {[%clk 0:00:56.6]} 27... Kh7
{[%clk 0:01:11.6]} 28. Rxb7 {[%clk 0:00:47.9]} 28... Qxb7 {[%clk 0:01:09.5]} 29.
Qxe5 {[%clk 0:00:48.8]} 29... Re7 {[%clk 0:00:58.9]} 30. Qf5+ {[%clk 0:00:45.1]}
30... Kg8 {[%clk 0:00:59.4]} 31. Rc1 {[%clk 0:00:44.9]} 31... Re8 {[%clk
0:00:55.2]} 32. Qf4 {[%clk 0:00:41.6]} 32... Qd5 {[%clk 0:00:34.1]} 33. Qc7
{[%clk 0:00:35.1]} 33... Nf6 {[%clk 0:00:19.2]} 34. Qxa7 {[%clk 0:00:33.8]}
34... Ng4 {[%clk 0:00:12.5]} 35. Qc5 {[%clk 0:00:29.1]} 35... Qf3 {[%clk
0:00:09]} 36. Qc6 {[%clk 0:00:26.4]} 36... Re4 {[%clk 0:00:09.3]} 37. Rc4 {[%clk
0:00:18.1]} 37... Qd1+ {[%clk 0:00:04.5]} 38. Kg2 {[%clk 0:00:17.5]} 38... Nxe3+
{[%clk 0:00:06]} 39. fxe3 {[%clk 0:00:17.3]} 39... Qe2+ {[%clk 0:00:07.4]} 40.
Kh3 {[%clk 0:00:15.9]} 40... Qf1# {[%clk 0:00:08.6]} 0-1

[Event "*** Titled Tuesday Blitz"]
[Site "Chess.com"]
[Date "2018.07.03"]
[Round "3"]
[White "Rock700chess"]
[Black "NemtsevIgor"]
[Result "0-1"]
[WhiteElo "2455"]
[BlackElo "2404"]
[TimeControl "180+2"]
[EndTime "13:36:32 PDT"]
[Termination "NemtsevIgor won on time"]

1. d4 {[%clk 0:03:01.8]} 1... c6 {[%clk 0:02:59.3]} 2. c4 {[%clk 0:03:02.2]}
2... d6 {[%clk 0:03:00.1]} 3. Nc3 {[%clk 0:03:02.7]} 3... Nd7 {[%clk 0:03:00.5]}
4. Nf3 {[%clk 0:03:03.6]} 4... h6 {[%clk 0:03:01.7]} 5. g3 {[%clk 0:03:02.6]}
5... g5 {[%clk 0:03:02.8]} 6. Bg2 {[%clk 0:03:03.5]} 6... Bg7 {[%clk 0:03:04]}
7. h3 {[%clk 0:03:00.9]} 7... Nf8 {[%clk 0:03:04.9]} 8. e4 {[%clk 0:03:01.8]}
8... Ne6 {[%clk 0:03:04.3]} 9. Be3 {[%clk 0:03:00.9]} 9... Nf6 {[%clk
0:03:04.3]} 10. d5 {[%clk 0:02:24.6]} 10... Nf8 {[%clk 0:03:03.9]} 11. e5 {[%clk
0:02:02.5]} 11... dxe5 {[%clk 0:02:54.8]} 12. Nxe5 {[%clk 0:01:54.2]} 12... cxd5
{[%clk 0:02:34.3]} 13. cxd5 {[%clk 0:01:49.4]} 13... N8d7 {[%clk 0:02:19]} 14.
Nc4 {[%clk 0:01:26.6]} 14... Kf8 {[%clk 0:01:52.8]} 15. O-O {[%clk 0:01:26]}
15... Rb8 {[%clk 0:01:42.3]} 16. f4 {[%clk 0:01:22.3]} 16... b5 {[%clk
0:01:38.9]} 17. Ne5 {[%clk 0:01:22.1]} 17... gxf4 {[%clk 0:01:33.2]} 18. Nc6
{[%clk 0:01:15]} 18... Qc7 {[%clk 0:01:24.2]} 19. Bxf4 {[%clk 0:01:15.7]} 19...
Qb6+ {[%clk 0:01:25.2]} 20. Kh2 {[%clk 0:01:12.1]} 20... h5 {[%clk 0:01:22.8]}
21. Nxb8 {[%clk 0:01:07.7]} 21... Ng4+ {[%clk 0:01:19.6]} 22. hxg4 {[%clk
0:00:42]} 22... hxg4+ {[%clk 0:01:20.3]} 23. Bh3 {[%clk 0:00:43.3]} 23... Rxh3+
{[%clk 0:01:20.4]} 24. Kg2 {[%clk 0:00:44.4]} 24... Nxb8 {[%clk 0:01:20]} 25.
Rh1 {[%clk 0:00:37.4]} 25... Bf5 {[%clk 0:01:11.4]} 26. Qd2 {[%clk 0:00:32.7]}
26... b4 {[%clk 0:01:11]} 27. Rxh3 {[%clk 0:00:24.7]} 27... gxh3+ {[%clk
0:01:10.5]} 28. Kh2 {[%clk 0:00:26.1]} 28... bxc3 {[%clk 0:01:11.5]} 29. bxc3
{[%clk 0:00:28]} 29... Nd7 {[%clk 0:01:10.5]} 30. Re1 {[%clk 0:00:24.6]} 30...
Qc5 {[%clk 0:01:03]} 31. Rc1 {[%clk 0:00:19.1]} 31... Ne5 {[%clk 0:00:58.3]} 32.
Qe2 {[%clk 0:00:12.5]} 32... Qxd5 {[%clk 0:00:56.6]} 33. c4 {[%clk 0:00:11.9]}
33... Nf3+ {[%clk 0:00:51.3]} 34. Kh1 {[%clk 0:00:11.9]} 34... Qc6 {[%clk
0:00:51]} 35. Qe3 {[%clk 0:00:04.3]} 35... Bd4 {[%clk 0:00:41.1]} 36. Bh6+
{[%clk 0:00:02.9]} 36... Kg8 {[%clk 0:00:38.8]} 37. Qa3 {[%clk 0:00:03.9]} 37...
Ne1+ {[%clk 0:00:31.2]} 38. Qf3 {[%clk 0:00:02.5]} 38... Qxf3+ {[%clk
0:00:31.7]} 0-1

[Event "*** Titled Tuesday Blitz"]
[Site "Chess.com"]
[Date "2018.07.03"]
[Round "3"]
[White "sergeikim"]
[Black "HanSchut"]
[Result "1-0"]
[WhiteElo "2417"]
[BlackElo "2273"]
[TimeControl "180+2"]
[EndTime "13:36:33 PDT"]
[Termination "sergeikim won by resignation"]

1. d4 {[%clk 0:03:01.9]} 1... Nf6 {[%clk 0:03:00.2]} 2. c4 {[%clk 0:03:02.8]}
2... g6 {[%clk 0:03:00.6]} 3. Nc3 {[%clk 0:03:03.7]} 3... d5 {[%clk 0:03:01.2]}
4. cxd5 {[%clk 0:03:04.1]} 4... Nxd5 {[%clk 0:03:01.9]} 5. e4 {[%clk 0:03:05.1]}
5... Nxc3 {[%clk 0:03:01.8]} 6. bxc3 {[%clk 0:03:06.7]} 6... Bg7 {[%clk
0:03:03.3]} 7. Bc4 {[%clk 0:03:04.8]} 7... O-O {[%clk 0:03:02.8]} 8. Ne2 {[%clk
0:03:05.7]} 8... c5 {[%clk 0:03:04.6]} 9. O-O {[%clk 0:03:06.4]} 9... cxd4
{[%clk 0:03:05]} 10. cxd4 {[%clk 0:03:06.8]} 10... Nc6 {[%clk 0:03:06.9]} 11.
Be3 {[%clk 0:03:07.4]} 11... Bg4 {[%clk 0:03:08.3]} 12. f3 {[%clk 0:03:07.8]}
12... Na5 {[%clk 0:03:09.8]} 13. Bd3 {[%clk 0:03:08.1]} 13... Be6 {[%clk
0:03:09.5]} 14. Qd2 {[%clk 0:03:08.1]} 14... Nc4 {[%clk 0:03:04.9]} 15. Bxc4
{[%clk 0:03:08.6]} 15... Bxc4 {[%clk 0:03:06.8]} 16. Rfd1 {[%clk 0:03:08.6]}
16... b5 {[%clk 0:02:56.7]} 17. Ng3 {[%clk 0:03:09]} 17... a5 {[%clk 0:02:53.7]}
18. Bh6 {[%clk 0:03:08.9]} 18... Qb6 {[%clk 0:02:42.8]} 19. Bxg7 {[%clk
0:03:02.7]} 19... Kxg7 {[%clk 0:02:44.7]} 20. Qg5 {[%clk 0:03:03.1]} 20... f6
{[%clk 0:02:28.1]} 21. Qg4 {[%clk 0:02:43.9]} 21... Rad8 {[%clk 0:02:12.1]} 22.
Kh1 {[%clk 0:02:44.5]} 22... Kh8 {[%clk 0:02:02.7]} 23. d5 {[%clk 0:02:42.8]}
23... e6 {[%clk 0:01:56.5]} 24. dxe6 {[%clk 0:02:36.7]} 24... Qxe6 {[%clk
0:01:55.6]} 25. Qf4 {[%clk 0:02:26.1]} 25... Qe5 {[%clk 0:01:36]} 26. Qh6 {[%clk
0:02:14.3]} 26... Bxa2 {[%clk 0:01:21.5]} 27. f4 {[%clk 0:02:14.2]} 27... Qb2
{[%clk 0:01:17]} 28. f5 {[%clk 0:01:57]} 28... Qc2 {[%clk 0:01:02.4]} 29. Rdc1
{[%clk 0:01:39.2]} 29... Qd2 {[%clk 0:00:44.1]} 30. Qh4 {[%clk 0:01:34.1]} 30...
g5 {[%clk 0:00:39]} 31. Qh6 {[%clk 0:01:33.2]} 31... Rf7 {[%clk 0:00:33.3]} 32.
e5 {[%clk 0:01:20.8]} 32... fxe5 {[%clk 0:00:27.4]} 33. Ne4 {[%clk 0:01:19.8]}
33... Qf4 {[%clk 0:00:19]} 34. Nxg5 {[%clk 0:01:19.8]} 34... Rg7 {[%clk
0:00:18.6]} 35. h4 {[%clk 0:01:10.5]} 35... Qxf5 {[%clk 0:00:19.5]} 36. Rxa2
{[%clk 0:01:07.1]} 36... Qg4 {[%clk 0:00:17.1]} 37. Ra3 {[%clk 0:00:59.4]} 37...
b4 {[%clk 0:00:15.3]} 38. Rh3 {[%clk 0:00:57.6]} 38... b3 {[%clk 0:00:15.9]} 39.
Qf6 {[%clk 0:00:57.9]} 39... b2 {[%clk 0:00:10.5]} 40. Qxd8+ {[%clk 0:00:56.8]}
40... Rg8 {[%clk 0:00:10.6]} 41. Qd2 {[%clk 0:00:49.7]} 41... bxc1=Q+ {[%clk
0:00:07]} 42. Qxc1 {[%clk 0:00:50.7]} 42... Rd8 {[%clk 0:00:08.5]} 43. Kh2
{[%clk 0:00:47.2]} 43... Qf4+ {[%clk 0:00:07.3]} 44. Qxf4 {[%clk 0:00:47.6]}
44... exf4 {[%clk 0:00:09.2]} 45. Nf7+ {[%clk 0:00:47.9]} 1-0

[Event "*** Titled Tuesday Blitz"]
[Site "Chess.com"]
[Date "2018.07.03"]
[Round "3"]
[White "saraswathii"]
[Black "LimeInTheCoconut"]
[Result "1-0"]
[WhiteElo "2313"]
[BlackElo "2223"]
[TimeControl "180+2"]
[EndTime "13:36:39 PDT"]
[Termination "saraswathii won by resignation"]

1. e4 {[%clk 0:03:01.9]} 1... e5 {[%clk 0:03:00.6]} 2. d3 {[%clk 0:03:03.1]}
2... Nc6 {[%clk 0:02:56.5]} 3. Nf3 {[%clk 0:03:04.1]} 3... g6 {[%clk 0:02:54.1]}
4. g3 {[%clk 0:03:04.5]} 4... Bg7 {[%clk 0:02:55]} 5. Bg2 {[%clk 0:03:05.5]}
5... Nge7 {[%clk 0:02:56.6]} 6. O-O {[%clk 0:03:06.6]} 6... O-O {[%clk
0:02:58.1]} 7. c3 {[%clk 0:03:07.2]} 7... d6 {[%clk 0:02:58.7]} 8. Nbd2 {[%clk
0:03:08]} 8... h6 {[%clk 0:02:56.9]} 9. Nc4 {[%clk 0:03:08.7]} 9... f5 {[%clk
0:02:55.6]} 10. exf5 {[%clk 0:03:09.5]} 10... gxf5 {[%clk 0:02:53.4]} 11. Nh4
{[%clk 0:03:10.4]} 11... d5 {[%clk 0:02:48.4]} 12. Ne3 {[%clk 0:03:08.3]} 12...
Be6 {[%clk 0:02:43.6]} 13. Qh5 {[%clk 0:03:06.9]} 13... Qe8 {[%clk 0:02:38]} 14.
Qe2 {[%clk 0:03:04.7]} 14... Rd8 {[%clk 0:02:36.3]} 15. Re1 {[%clk 0:03:03.7]}
15... e4 {[%clk 0:02:30.8]} 16. dxe4 {[%clk 0:03:03.4]} 16... dxe4 {[%clk
0:02:29.9]} 17. Nc2 {[%clk 0:03:00.5]} 17... Ne5 {[%clk 0:02:26.8]} 18. Nd4
{[%clk 0:02:57.1]} 18... Bc8 {[%clk 0:02:12.6]} 19. Bf4 {[%clk 0:02:55.6]} 19...
c5 {[%clk 0:02:08.9]} 20. Bxe5 {[%clk 0:02:51.4]} 20... Bxe5 {[%clk 0:02:08.7]}
21. Qc4+ {[%clk 0:02:51.1]} 21... Rd5 {[%clk 0:01:57.1]} 22. Ndxf5 {[%clk
0:02:49.8]} 22... Bxf5 {[%clk 0:01:50.1]} 23. Nxf5 {[%clk 0:02:49.8]} 23... Rxf5
{[%clk 0:01:50.6]} 24. Bxe4 {[%clk 0:02:49.7]} 24... Qf7 {[%clk 0:01:44.6]} 25.
Bxf5 {[%clk 0:02:34.5]} 25... Nxf5 {[%clk 0:01:41.6]} 26. f4 {[%clk 0:02:21.1]}
26... Bg7 {[%clk 0:01:28]} 27. Rad1 {[%clk 0:02:16.7]} 27... Rxd1 {[%clk
0:01:22.1]} 28. Qxf7+ {[%clk 0:02:18.6]} 28... Kxf7 {[%clk 0:01:23.5]} 29. Rxd1
{[%clk 0:02:19.8]} 29... Ke7 {[%clk 0:01:09.4]} 30. Rd5 {[%clk 0:02:20]} 30...
Nd6 {[%clk 0:00:48.7]} 31. Rxc5 {[%clk 0:02:18.9]} 31... Kd7 {[%clk 0:00:44.9]}
32. Kg2 {[%clk 0:02:17.8]} 32... b6 {[%clk 0:00:45.6]} 33. Rd5 {[%clk
0:02:14.2]} 33... Kc6 {[%clk 0:00:42]} 34. Rd2 {[%clk 0:02:07.4]} 34... Nc4
{[%clk 0:00:42.2]} 35. Re2 {[%clk 0:02:06]} 35... a5 {[%clk 0:00:25.4]} 36. Kf3
{[%clk 0:02:02.4]} 36... Kd5 {[%clk 0:00:25.6]} 37. b3 {[%clk 0:01:59]} 37...
Nd6 {[%clk 0:00:21.4]} 38. c4+ {[%clk 0:01:55.5]} 38... Kc5 {[%clk 0:00:15.7]}
39. g4 {[%clk 0:01:54.6]} 39... a4 {[%clk 0:00:09.8]} 40. h4 {[%clk 0:01:49.2]}
40... axb3 {[%clk 0:00:07]} 41. axb3 {[%clk 0:01:51.1]} 41... h5 {[%clk
0:00:08.1]} 42. gxh5 {[%clk 0:01:49.9]} 42... Nf5 {[%clk 0:00:09.2]} 43. Kg4
{[%clk 0:01:48.4]} 43... Nd4 {[%clk 0:00:08.6]} 44. Re7 {[%clk 0:01:47.6]} 44...
Bf8 {[%clk 0:00:08.4]} 45. Rf7 {[%clk 0:01:42.1]} 45... Bh6 {[%clk 0:00:09.2]}
46. Rf6 {[%clk 0:01:32.7]} 46... Bg7 {[%clk 0:00:07.4]} 47. Rg6 {[%clk
0:01:30.1]} 47... Bh8 {[%clk 0:00:08.6]} 48. h6 {[%clk 0:01:29.9]} 48... Nxb3
{[%clk 0:00:08.9]} 49. h7 {[%clk 0:01:28.5]} 49... Nd2 {[%clk 0:00:08.9]} 50.
Rg8 {[%clk 0:01:26.7]} 50... Bd4 {[%clk 0:00:09.4]} 51. Rd8 {[%clk 0:01:24.3]}
1-0

[Event "*** Titled Tuesday Blitz"]
[Site "Chess.com"]
[Date "2018.07.03"]
[Round "3"]
[White "RitvarsReimanis"]
[Black "djano"]
[Result "1/2-1/2"]
[WhiteElo "2469"]
[BlackElo "2415"]
[TimeControl "180+2"]
[EndTime "13:37:04 PDT"]
[Termination "Game drawn by repetition"]

1. d4 {[%clk 0:03:01.9]} 1... Nf6 {[%clk 0:02:59.8]} 2. c4 {[%clk 0:03:02.5]}
2... g6 {[%clk 0:03:00.8]} 3. f3 {[%clk 0:03:03.1]} 3... c5 {[%clk 0:02:57.5]}
4. d5 {[%clk 0:03:04.2]} 4... Bg7 {[%clk 0:02:57.6]} 5. e4 {[%clk 0:03:05.4]}
5... d6 {[%clk 0:02:58.7]} 6. Ne2 {[%clk 0:03:05.3]} 6... O-O {[%clk 0:02:57.7]}
7. Nec3 {[%clk 0:03:05.8]} 7... e6 {[%clk 0:02:55.3]} 8. Be2 {[%clk 0:03:04.1]}
8... exd5 {[%clk 0:02:56.3]} 9. cxd5 {[%clk 0:03:06]} 9... Na6 {[%clk
0:02:51.4]} 10. O-O {[%clk 0:03:06.1]} 10... Nc7 {[%clk 0:02:52.2]} 11. a4
{[%clk 0:03:07]} 11... b6 {[%clk 0:02:48.9]} 12. Na3 {[%clk 0:03:07.6]} 12...
Rb8 {[%clk 0:02:48.6]} 13. Nab5 {[%clk 0:03:06.6]} 13... a6 {[%clk 0:02:46.8]}
14. Nxc7 {[%clk 0:03:03.9]} 14... Qxc7 {[%clk 0:02:48.7]} 15. Be3 {[%clk
0:02:59]} 15... c4 {[%clk 0:02:47]} 16. Bd4 {[%clk 0:02:53]} 16... Bd7 {[%clk
0:02:44.7]} 17. Qd2 {[%clk 0:02:45.6]} 17... b5 {[%clk 0:02:42.3]} 18. axb5
{[%clk 0:02:46.7]} 18... axb5 {[%clk 0:02:43.9]} 19. Ra7 {[%clk 0:02:46]} 19...
Rb7 {[%clk 0:02:44.4]} 20. Rfa1 {[%clk 0:02:47.3]} 20... Rfb8 {[%clk 0:02:39.6]}
21. Nd1 {[%clk 0:02:33.7]} 21... h5 {[%clk 0:02:28]} 22. Ne3 {[%clk 0:02:31.6]}
22... h4 {[%clk 0:02:25.5]} 23. Rxb7 {[%clk 0:02:22.4]} 23... Rxb7 {[%clk
0:02:24.7]} 24. Ra8+ {[%clk 0:02:23.4]} 24... Rb8 {[%clk 0:02:21.6]} 25. Rxb8+
{[%clk 0:02:24.3]} 25... Qxb8 {[%clk 0:02:22.6]} 26. Qc3 {[%clk 0:02:25.1]}
26... Ne8 {[%clk 0:02:19]} 27. Bxg7 {[%clk 0:02:22]} 27... Nxg7 {[%clk
0:02:20.9]} 28. b3 {[%clk 0:02:15.1]} 28... cxb3 {[%clk 0:02:13.4]} 29. Qxb3
{[%clk 0:02:15.8]} 29... Qa7 {[%clk 0:02:12.1]} 30. Kf1 {[%clk 0:02:13]} 30...
Nh5 {[%clk 0:02:08.4]} 31. Nd1 {[%clk 0:02:07.9]} 31... h3 {[%clk 0:02:01.5]}
32. Qe3 {[%clk 0:01:03.1]} 32... hxg2+ {[%clk 0:01:53.3]} 33. Kxg2 {[%clk
0:01:01.3]} 33... Qa2 {[%clk 0:01:48.3]} 34. Nf2 {[%clk 0:00:35.3]} 34... b4
{[%clk 0:01:41.4]} 35. Bd1 {[%clk 0:00:29.6]} 35... Ba4 {[%clk 0:01:29.7]} 36.
Qa7 {[%clk 0:00:24.6]} 36... b3 {[%clk 0:01:16.7]} 37. Qb8+ {[%clk 0:00:20.6]}
37... Kh7 {[%clk 0:01:13.8]} 38. Bxb3 {[%clk 0:00:19.7]} 38... Bxb3 {[%clk
0:01:11.8]} 39. Qxd6 {[%clk 0:00:21.6]} 39... Bd1 {[%clk 0:01:06.5]} 40. Qe7
{[%clk 0:00:18.4]} 40... Nf4+ {[%clk 0:00:56.4]} 41. Kg3 {[%clk 0:00:19.8]}
41... Nh5+ {[%clk 0:00:52.1]} 42. Kg2 {[%clk 0:00:18.9]} 42... Nf4+ {[%clk
0:00:32.6]} 43. Kg3 {[%clk 0:00:20]} 43... Nh5+ {[%clk 0:00:21.1]} 44. Kg2
{[%clk 0:00:21.1]} 44... Nf4+ {[%clk 0:00:20.3]} 45. Kg3 {[%clk 0:00:22.3]}
45... Nh5+ {[%clk 0:00:20.3]} 46. Kg2 {[%clk 0:00:23.6]} 46... Kg8 {[%clk
0:00:20.8]} 47. Qe8+ {[%clk 0:00:24.1]} 47... Kg7 {[%clk 0:00:20.7]} 48. Qe5+
{[%clk 0:00:25.2]} 48... Kg8 {[%clk 0:00:21.1]} 49. Qe8+ {[%clk 0:00:26.2]}
49... Kg7 {[%clk 0:00:22.2]} 50. Qe5+ {[%clk 0:00:28.1]} 50... Kh7 {[%clk
0:00:23.4]} 51. Qe7 {[%clk 0:00:21.9]} 1/2-1/2